Workbook

Sheet Omkostningseffektivitet
B2: Vejledning:
B3: Dette dokument kan anvendes til at vurdere, hvorvidt klimatilpasning ved hhv. sædvanlig afhjælpning eller alternativt projekt er mest omkostningseffektivt.
B4: Oplysninger om omkostninger til anlæg og drift samt projekternes levetid skal indtastes i de røde celler.
B5: Herefter beregnes den årlige ækvivalente annuitet ved de to typer klimatilpasningsinitiativer. Sidst beregnes hvilket klimatilpasningsinitiativ, som er mest omkostningseffektivt
B6: OBS: Ved det alternative klimatilpasningsprojekt er det kun selskabets andel af anlægsomkostninger der skal indtastes. Dvs. at et anlæg til f.eks. 100 kr. som er finansieret med 25 % fra kommunen skal indtastes som 75 kr.
B8: Rente | C8: Inflation | F8: Resultater
B9: 0.035 | C9: 0.0226
F10: Årlig ækvivalent annuitet ved sædvanlig afhjælpning | G10: =IF(SUM($C$30:$D$149)>0,($B$9*SUM($J$30:$J$149)/(1-(1+$B$9)^(-($C$19-$C$18+1)))),"") -> 247448.5238
F11: Årlig ækvivalent annuitet ved alternativt klimatilpasningsprojekt | G11: =IF(SUM($G$30:$H$149)>0,($B$9*SUM($K$30:$K$149)/(1-(1+$B$9)^(-($G$19-$G$18+1)))),"") -> 47435.88444
F13: Konklusion: | G13: =IF($G$10>0,IF($G$10<>$G$11,IF($G$10<$G$11,"Sædvanlig afhjælpning er mest omkostningseffektivt","Alternativt projekt er mest omkostningseffektivt"),"Sædvanlig afhjælpning og alternativt projekt er lige omkostningseffektivt"),"") -> Alternativt projekt er mest omkostningseffektivt
B16: Klimatilpasning ved sædvanlig afhjælpning | F16: Klimatilpasning ved alternativt klimatilpasningsprojekt
B18: Projektets startår | C18: 2021 | F18: Projektets startår | G18: 2021 | K18: =IF($F18>=$G$18,IF($F18<=$G$19,SUM($G18:$H18),""),"") -> 
B19: Projektets slutår | C19: 2096 | F19: Projektets slutår | G19: 2096
B20: Periodelængde | C20: =C19-C18 -> 75 | F20: Periodelængde | G20: =G19-G18 -> 75
B22: Samlede anlægsomkostninger | C22: 1995000 | F22: Selskabets samlede anlægsomkostninger | G22: 1069433
B23: Periodelængde for anlægsomkostninger | C23: =G23 -> 1 | F23: Periodelængde for anlægsomkostninger | G23: 1
B25: Startår for drift | C25: 2022 | F25: Startår for drift | G25: 2022
B26: Driftsomkostninger i det første år | C26: 99750 | F26: Driftsomkostninger i det første år | G26: 4806
B29: År | C29: Tilskud til anlægsomkostninger betalt i år t | D29: Forventede driftsomkostninger i år t | F29: År | G29: Tilskud til anlægsomkostninger betalt i år t | H29: Forventede driftsomkostninger i år t | J29: Tilbagediskonteret cash-flow sædvanlig projekt | K29: Tilbagediskonteret cash-flow alternativt projekt
B30: =C18 -> 2021 | C30: 1995000 | F30: =G18 -> 2021 | G30: 1069433 | J30: =IF($C$18>$G$18,SUM($C30:$D30)/((1+$B$9)^($B30-$G$18+1)),SUM($C30:$D30)/((1+$B$9)^($B30-$C$18+1))) -> 1927536.232 | K30: =IF($G$18>$C$18,SUM($G30:$H30)/((1+$B$9)^($F30-$C$18+1)),SUM($G30:$H30)/((1+$B$9)^($F30-$G$18+1))) -> 1033268.599
B31: =B30+1 -> 2022 | D31: 99750 | F31: =F30+1 -> 2022 | H31: 4806 | J31: =IF($C$18>$G$18,SUM($C31:$D31)/((1+$B$9)^($B31-$G$18+1)),SUM($C31:$D31)/((1+$B$9)^($B31-$C$18+1))) -> 93117.69236 | K31: =IF($G$18>$C$18,SUM($G31:$H31)/((1+$B$9)^($F31-$C$18+1)),SUM($G31:$H31)/((1+$B$9)^($F31-$G$18+1))) -> 4486.452426
B32: =B31+1 -> 2023 | D32: 102004.35 | F32: 2023 | H32: 4914.6156 | J32: 92002.07943 | K32: 4432.701692
B33: 2024 | D33: 104309.6483 | F33: 2024 | H33: 5025.685913 | J33: 90899.83229 | K33: 4379.594927
B34: 2025 | D34: 106667.0464 | F34: 2025 | H34: 5139.266414 | J34: 89810.79082 | K34: 4327.124418
B35: 2026 | D35: 109077.7216 | F35: 2026 | H35: 5255.413835 | J35: 88734.79681 | K35: 4275.282541
B36: 2027 | D36: 111542.8781 | F36: 2027 | H36: 5374.186188 | J36: 87671.69393 | K36: 4224.061765
B37: 2028 | D37: 114063.7472 | F37: 2028 | H37: 5495.642796 | J37: 86621.32774 | K37: 4173.454648
B38: 2029 | D38: 116641.5878 | F38: 2029 | H38: 5619.844323 | J38: 85583.54565 | K38: 4123.453839
B39: 2030 | D39: 119277.6877 | F39: 2030 | H39: 5746.852805 | J39: 84558.19689 | K39: 4074.052073
B40: 2031 | D40: 121973.3635 | F40: 2031 | H40: 5876.731678 | J40: 83545.1325 | K40: 4025.242174
B41: 2032 | D41: 124729.9615 | F41: 2032 | H41: 6009.545814 | J41: 82544.20531 | K41: 3977.01705
B42: 2033 | D42: 127548.8586 | F42: 2033 | H42: 6145.361549 | J42: 81555.26991 | K42: 3929.369696
B43: 2034 | D43: 130431.4628 | F43: 2034 | H43: 6284.24672 | J43: 80578.18261 | K43: 3882.293189
B44: 2035 | D44: 133379.2139 | F44: 2035 | H44: 6426.270696 | J44: 79612.80149 | K44: 3835.780691
B45: 2036 | D45: 136393.5841 | F45: 2036 | H45: 6571.504414 | J45: 78658.98628 | K45: 3789.825444
B46: 2037 | D46: 139476.0791 | F46: 2037 | H46: 6720.020414 | J46: 77716.59843 | K46: 3744.420772
B47: 2038 | D47: 142628.2385 | F47: 2038 | H47: 6871.892875 | J47: 76785.50102 | K47: 3699.560079
B48: 2039 | D48: 145851.6367 | F48: 2039 | H48: 7027.197654 | J48: 75865.55878 | K48: 3655.236847
B49: 2040 | D49: 149147.8837 | F49: 2040 | H49: 7186.012321 | J49: 74956.63808 | K49: 3611.444638
B50: 2041 | D50: 152518.6259 | F50: 2041 | H50: 7348.416199 | J50: 74058.60686 | K50: 3568.177088
B51: 2042 | D51: 155965.5468 | F51: 2042 | H51: 7514.490405 | J51: 73171.33466 | K51: 3525.427914
B52: 2043 | D52: 159490.3682 | F52: 2043 | H52: 7684.317889 | J52: 72294.69258 | K52: 3483.190903
B53: 2044 | D53: 163094.8505 | F53: 2044 | H53: 7857.983473 | J53: 71428.55327 | K53: 3441.45992
B54: 2045 | D54: 166780.7941 | F54: 2045 | H54: 8035.573899 | J54: 70572.79089 | K54: 3400.228903
B55: 2046 | D55: 170550.0401 | F55: 2046 | H55: 8217.17787 | J55: 69727.28113 | K55: 3359.491861
B56: 2047 | D56: 174404.471 | F56: 2047 | H56: 8402.886089 | J56: 68891.90114 | K56: 3319.242876
B57: 2048 | D57: 178346.012 | F57: 2048 | H57: 8592.791315 | J57: 68066.52957 | K57: 3279.476102
B58: 2049 | D58: 182376.6319 | F58: 2049 | H58: 8786.988399 | J58: 67251.04651 | K58: 3240.18576
B59: 2050 | D59: 186498.3438 | F59: 2050 | H59: 8985.574337 | J59: 66445.33349 | K59: 3201.366143
B60: 2051 | D60: 190713.2063 | F60: 2051 | H60: 9188.648317 | J60: 65649.27346 | K60: 3163.011611
B61: 2052 | D61: 195023.3248 | F61: 2052 | H61: 9396.311768 | J61: 64862.75076 | K61: 3125.116593
B62: 2053 | D62: 199430.8519 | F62: 2053 | H62: 9608.668414 | J62: 64085.65114 | K62: 3087.675583
B63: 2054 | D63: 203937.9892 | F63: =F62+1 -> 2054 | H63: 9825.824321 | J63: 63317.86169 | K63: 3050.683141
B64: 2055 | D64: 208546.9877 | F64: 2055 | H64: 10047.88795 | J64: 62559.27089 | K64: 3014.133894
B65: 2056 | D65: 213260.1497 | F65: 2056 | H65: 10274.97022 | J65: 61809.76851 | K65: 2978.022531
B66: 2057 | D66: 218079.829 | F66: 2057 | H66: 10507.18454 | J66: 61069.24568 | K66: 2942.343807
B67: 2058 | D67: 223008.4332 | F67: 2058 | H67: 10744.64692 | J67: 60337.59482 | K67: 2907.092538
B68: 2059 | D68: 228048.4238 | F68: 2059 | H68: 10987.47594 | J68: 59614.70962 | K68: 2872.263603
B69: 2060 | D69: 233202.3181 | F69: 2060 | H69: 11235.79289 | J69: 58900.48508 | K69: 2837.851943
B70: 2061 | D70: 238472.6905 | F70: 2061 | H70: 11489.72181 | J70: 58194.81743 | K70: 2803.852557
B71: 2062 | D71: 243862.1733 | F71: 2062 | H71: 11749.38952 | J71: 57497.60416 | K71: 2770.260507
B72: 2063 | D72: 249373.4585 | F72: 2063 | H72: 12014.92573 | J72: 56808.74398 | K72: 2737.070913
B73: 2064 | D73: 255009.2986 | F73: 2064 | H73: 12286.46305 | J73: 56128.1368 | K73: 2704.278952
B74: 2065 | D74: 260772.5088 | F74: 2065 | H74: 12564.13711 | J74: 55455.68376 | K74: 2671.879861
B75: 2066 | D75: 266665.9675 | F75: 2066 | H75: 12848.08661 | J75: 54791.28717 | K75: 2639.868933
B76: 2067 | D76: 272692.6183 | F76: 2067 | H76: 13138.45337 | J76: 54134.85049 | K76: 2608.241518
B77: 2068 | D77: 278855.4715 | F77: 2068 | H77: 13435.38242 | J77: 53486.27837 | K77: 2576.993021
B78: 2069 | D78: 285157.6052 | F78: 2069 | H78: 13739.02206 | J78: 52845.47658 | K78: 2546.118902
B79: 2070 | D79: 291602.167 | F79: 2070 | H79: 14049.52396 | J79: 52212.35203 | K79: 2515.614675
B80: 2071 | D80: 298192.376 | F80: 2071 | H80: 14367.0432 | J80: 51586.81274 | K80: 2485.47591
B81: 2072 | D81: 304931.5237 | F81: 2072 | H81: 14691.73838 | J81: 50968.76783 | K81: 2455.698228
B82: 2073 | D82: 311822.9761 | F82: 2073 | H82: 15023.77166 | J82: 50358.12752 | K82: 2426.277302
B83: 2074 | D83: 318870.1754 | F83: 2074 | H83: 15363.3089 | J83: 49754.80309 | K83: 2397.208859
B84: 2075 | D84: 326076.6414 | F84: 2075 | H84: 15710.51968 | J84: 49158.7069 | K84: 2368.488675
B85: 2076 | D85: 333445.9735 | F85: 2076 | H85: 16065.57743 | J85: 48569.75235 | K85: 2340.112579
B86: 2077 | D86: 340981.8525 | F86: 2077 | H86: 16428.65948 | J86: 47987.85386 | K86: 2312.076448
B87: 2078 | D87: 348688.0423 | F87: 2078 | H87: 16799.94718 | J87: 47412.92692 | K87: 2284.376208
B88: 2079 | D88: 356568.3921 | F88: 2079 | H88: 17179.62599 | J88: 46844.88799 | K88: 2257.007836
B89: 2080 | D89: 364626.8377 | F89: 2080 | H89: 17567.88554 | J89: 46283.65455 | K89: 2229.967356
B90: 2081 | D90: 372867.4043 | F90: 2081 | H90: 17964.91975 | J90: 45729.14506 | K90: 2203.250839
B91: 2082 | D91: 381294.2076 | F91: 2082 | H91: 18370.92694 | J91: 45181.27898 | K91: 2176.854404
B92: 2083 | D92: 389911.4567 | F92: 2083 | H92: 18786.10988 | J92: 44639.9767 | K92: 2150.774216
B93: 2084 | D93: 398723.4556 | F93: 2084 | H93: 19210.67597 | J93: 44105.15959 | K93: 2125.006486
B94: 2085 | D94: 407734.6057 | F94: 2085 | H94: 19644.83724 | J94: 43576.74994 | K94: 2099.547471
B95: 2086 | D95: 416949.4078 | F95: 2086 | H95: 20088.81057 | J95: =IF($C$18>$G$18,SUM($C95:$D95)/((1+$B$9)^($B95-$G$18+1)),SUM($C95:$D95)/((1+$B$9)^($B95-$C$18+1))) -> 43054.67101 | K95: =IF($G$18>$C$18,SUM($G95:$H95)/((1+$B$9)^($F95-$C$18+1)),SUM($G95:$H95)/((1+$B$9)^($F95-$G$18+1))) -> 2074.393472
B96: =B95+1 -> 2087 | D96: 426372.4644 | F96: 2087 | H96: 20542.81768 | J96: 42538.84693 | K96: 2049.540836
B97: =B96+1 -> 2088 | D97: 436008.4821 | F97: 2088 | H97: 21007.08536 | J97: 42029.20277 | K97: 2024.98595
B98: =B97+1 -> 2089 | D98: 445862.2738 | F98: 2089 | H98: 21481.84549 | J98: 41525.6645 | K98: 2000.725249
B99: =B98+1 -> 2090 | D99: 455938.7612 | F99: =F98+1 -> 2090 | H99: 21967.3352 | J99: 41028.15895 | K99: 1976.755207
B100: 2091 | D100: 466242.9772 | F100: 2091 | H100: 22463.79698 | J100: 40536.61386 | K100: 1953.072343
B101: 2092 | D101: 476780.0685 | F101: 2092 | H101: 22971.47879 | J101: 40050.95781 | K101: 1929.673215
B102: 2093 | D102: 487555.298 | F102: 2093 | H102: 23490.63421 | J102: 39571.12025 | K102: 1906.554425
B103: 2094 | D103: 498574.0478 | F103: 2094 | H103: 24021.52254 | J103: 39097.03146 | K103: 1883.712614
B104: 2095 | D104: 509841.8213 | F104: 2095 | H104: 24564.40895 | J104: 38628.62258 | K104: 1861.144463
B105: 2096 | D105: 521364.2464 | F105: 2096 | H105: 25119.56459 | J105: 38165.82556 | K105: 1838.846693
B106: 2097 | F106: 2097 | J106: 0 | K106: 0
B107: 2098 | F107: 2098 | J107: 0 | K107: 0
B108: 2099 | F108: 2099 | J108: 0 | K108: 0
B109: =B108+1 -> 2100 | F109: =F108+1 -> 2100 | J109: 0 | K109: 0
B110: =B109+1 -> 2101 | F110: =F109+1 -> 2101 | J110: 0 | K110: 0
B111: 2102 | F111: 2102 | J111: 0 | K111: 0
B112: 2103 | F112: 2103 | J112: 0 | K112: 0
B113: 2104 | F113: 2104 | J113: 0 | K113: 0
B114: 2105 | F114: 2105 | J114: 0 | K114: 0
B115: 2106 | F115: 2106 | J115: 0 | K115: 0
B116: 2107 | F116: 2107 | J116: 0 | K116: 0
B117: =B116+1 -> 2108 | F117: =F116+1 -> 2108 | J117: 0 | K117: 0
B118: 2109 | F118: 2109 | J118: 0 | K118: 0
B119: 2110 | F119: 2110 | J119: 0 | K119: 0
B120: 2111 | F120: 2111 | J120: 0 | K120: 0
B121: 2112 | F121: 2112 | J121: 0 | K121: 0
B122: 2113 | F122: 2113 | J122: 0 | K122: 0
B123: 2114 | F123: 2114 | J123: 0 | K123: 0
B124: 2115 | F124: 2115 | J124: 0 | K124: 0
B125: 2116 | F125: 2116 | J125: 0 | K125: 0
B126: 2117 | F126: 2117 | J126: 0 | K126: 0
B127: 2118 | F127: 2118 | J127: 0 | K127: 0
B128: 2119 | F128: 2119 | J128: 0 | K128: 0
B129: 2120 | F129: 2120 | J129: 0 | K129: 0
B130: 2121 | F130: 2121 | J130: 0 | K130: 0
B131: 2122 | F131: 2122 | J131: 0 | K131: 0
B132: 2123 | F132: 2123 | J132: 0 | K132: 0
B133: 2124 | F133: 2124 | J133: 0 | K133: 0
B134: 2125 | F134: 2125 | J134: 0 | K134: 0
B135: 2126 | F135: 2126 | J135: 0 | K135: 0
B136: 2127 | F136: 2127 | J136: 0 | K136: 0
B137: 2128 | F137: 2128 | J137: 0 | K137: 0
B138: 2129 | F138: 2129 | J138: 0 | K138: 0
B139: 2130 | F139: 2130 | J139: 0 | K139: 0
B140: 2131 | F140: 2131 | J140: 0 | K140: 0
B141: 2132 | F141: 2132 | J141: 0 | K141: 0
B142: 2133 | F142: 2133 | J142: 0 | K142: 0
B143: 2134 | F143: 2134 | J143: 0 | K143: 0
B144: 2135 | F144: 2135 | J144: 0 | K144: 0
B145: 2136 | F145: 2136 | J145: 0 | K145: 0
B146: 2137 | F146: 2137 | J146: 0 | K146: 0
B147: 2138 | F147: 2138 | J147: 0 | K147: 0
B148: 2139 | F148: 2139 | J148: 0 | K148: 0
B149: 2140 | F149: 2140 | J149: 0 | K149: 0
